bitfinex/quotes_ETHUSD_20250626
["timestamp","ask_amount","ask_price","bid_price","bid_amount"]
[1750931295700,6.888,2464.2,2464.0,4.05837479]
[1750931295908,6.888,2464.2,2464.0,4.05833962]
[1750931296213,8.78674,2464.2,2463.7,4.0589206]
[1750931296511,0.7849,2464.0,2463.7,4.0589206]
[1750931297402,0.7849,2464.0,2463.6,4.26139147]
[1750931297596,0.7849,2464.0,2463.6,0.2024]
[1750931297812,0.2024,2463.9,2463.5,0.2024]
[1750931297999,0.2024,2463.9,2463.6,4.05908355]
[1750931298632,0.2024,2463.9,2463.5,4.26159609]
[1750931298989,0.2024,2463.9,2463.6,4.05904666]
[1750931299612,0.2024,2463.9,2463.5,4.26164308]
[1750931299613,0.2024,2463.9,2463.8,4.058771]
[1750931300515,0.2024,2463.9,2463.7,4.05885659]
[1750931300690,0.2024,2463.9,2463.7,4.05893574]
[1750931301290,0.2024,2463.9,2463.8,4.058771]
[1750931301697,0.2024,2463.9,2463.5,0.2024]
[1750931301897,0.2024,2463.9,2463.6,4.05903099]
[1750931302387,0.2024,2463.9,2463.7,4.05888676]
[1750931302586,0.2024,2463.9,2463.8,4.058771]
[1750931303000,0.7888,2464.3,2463.8,4.058771]
[1750931303207,0.2024,2464.3,2464.1,4.05819472]
[1750931303412,0.2024,2464.3,2463.9,4.05854356]
[1750931303623,10.0,2464.3,2463.8,4.05862489]
[1750931303808,10.0,2464.3,2463.9,4.05847146]
[1750931303997,10.0,2464.3,2463.5,4.86645917]
[1750931303998,10.2024,2464.3,2463.8,4.26107424]
[1750931304212,0.7888,2464.1,2463.7,4.05883233]
[1750931304415,0.7888,2464.1,2463.8,4.05865157]
[1750931304416,0.2024,2464.0,2463.8,4.05865157]
[1750931304724,0.2024,2464.0,2463.9,4.05860627]
[1750931304932,19.5648,2464.3,2463.5,0.8072]
[1750931305122,0.2024,2464.2,2463.7,4.26133304]
[1750931305325,21.52128,2464.3,2463.5,0.8072]
[1750931305627,0.2024,2464.0,2463.5,1.0096]
[1750931306027,0.2024,2464.0,2463.8,4.05864938]
[1750931306421,0.2024,2464.0,2463.9,4.05860627]
[1750931306619,0.7888,2464.3,2464.2,4.05811216]
[1750931306846,11.476928,2464.3,2464.2,4.05811216]
[1750931307726,0.758,2464.5,2464.3,4.05781613]
[1750931307945,10.0,2464.5,2464.4,4.05778282]
[1750931308144,10.0,2464.5,2464.3,4.05787276]
[1750931308554,10.0,2464.5,2464.4,4.05778282]
[1750931309935,28.6804,2464.6,2464.5,4.05761817]
[1750931310253,28.6804,2464.6,2464.4,4.05770009]
[1750931310618,19.9364,2464.6,2464.4,4.05770009]
[1750931310824,19.9364,2464.6,2464.5,4.05761817]
[1750931311027,26.8134,2464.6,2464.4,4.05770676]
[1750931311252,19.9364,2464.6,2464.5,4.05761817]
[1750931311429,17.0794,2464.6,2464.5,4.05761817]
[1750931312927,2.10423325,2465.1,2464.8,4.05712431]
[1750931313134,2.10423325,2465.1,2464.8,4.05704793]
[1750931313337,6.877,2465.0,2464.8,4.05712246]
[1750931314528,16.877,2465.0,2464.9,4.05695971]
[1750931314732,16.877,2465.0,2464.8,4.05703803]
[1750931315468,10.0,2465.0,2464.7,4.05727403]
[1750931315677,10.0,2465.0,2464.6,4.2598511]
[1750931315679,6.877,2464.9,2464.8,4.05712431]
[1750931317089,6.877,2464.9,2464.7,4.0572199]
[1750931317754,6.877,2464.9,2464.6,0.2024]
[1750931317946,6.877,2464.9,2464.5,4.0575407]
[1750931318144,0.2024,2464.8,2464.5,4.05749919]
[1750931318880,0.2024,2464.8,2464.4,4.26013055]
[1750931319085,0.2024,2464.8,2464.5,4.05761782]
[1750931319291,0.2024,2464.8,2464.6,4.05745245]
[1750931319703,6.876,2464.8,2464.7,4.05728891]
[1750931319906,0.2024,2464.9,2464.5,0.2024]
[1750931320206,6.876,2464.8,2464.7,4.05728891]
[1750931320404,10.84768559,2465.3,2464.7,4.05728891]
[1750931320405,0.7716,2465.4,2465.2,4.05637953]
[1750931320566,1.866,2465.6,2464.8,0.7648]
[1750931320763,6.876,2465.5,2464.8,0.7648]
[1750931320958,6.876,2465.5,2464.8,4.8219144]
[1750931321158,0.7716,2465.7,2465.1,4.05663056]
[1750931321424,0.7716,2465.7,2465.4,4.05613693]
[1750931321425,10.0,2465.5,2465.4,4.05613693]
[1750931322180,10.0,2465.5,2464.9,4.62227891]
[1750931322381,6.875,2465.5,2465.3,4.05623829]
[1750931322591,6.875,2465.5,2464.9,0.56536287]
[1750931322815,6.875,2465.5,2465.3,4.0562966]
[1750931323682,6.875,2465.5,2465.4,4.05613693]
[1750931324128,6.875,2465.5,2464.8,4.82176002]
[1750931324381,6.875,2465.5,2465.3,4.05623274]
[1750931325389,16.875,2465.6,2465.5,4.05582792]
[1750931325993,10.0,2465.6,2465.5,4.05582792]
[1750931326511,16.874,2465.8,2465.7,4.05551894]
[1750931328227,0.8304,2466.1,2465.9,4.05519976]
[1750931328383,18.74,2466.0,2465.9,4.05519976]
[1750931328578,16.874,2466.0,2465.9,4.05519976]
[1750931328967,7.81,2466.8,2466.1,4.05493918]
[1750931328968,12.4314,2466.3,2466.1,4.05493918]
[1750931329229,10.5654,2466.3,2465.6,0.7526]
[1750931329401,16.873,2466.2,2465.9,4.05523732]
[1750931329605,16.873,2466.2,2466.0,4.05514023]
[1750931330191,10.0,2466.2,2466.1,4.0549856]
[1750931330418,16.873,2466.2,2466.0,4.05500729]
[1750931330604,16.873,2466.2,2466.1,4.0549856]
[1750931330802,0.2024,2466.3,2466.2,4.05482118]
[1750931331128,6.873,2466.3,2466.1,0.81099929]
[1750931331291,6.873,2466.3,2466.0,0.2024]
[1750931331721,6.873,2466.3,2466.0,4.25754388]
[1750931332222,6.873,2466.3,2466.2,4.05482118]
[1750931332421,6.873,2466.3,2466.1,4.05491992]
[1750931334453,6.873,2466.3,2466.0,4.25745937]
[1750931335153,6.873,2466.3,2466.1,4.05498533]
[1750931335559,6.873,2466.3,2466.0,4.25743232]
[1750931335732,6.873,2466.3,2466.0,0.2024]
[1750931336461,6.873,2466.3,2466.0,4.25747528]
[1750931338265,6.873,2466.3,2466.0,4.25744836]
[1750931338561,6.873,2466.3,2466.1,4.05497264]
[1750931339335,6.873,2466.3,2466.0,4.2574823]
[1750931339561,6.873,2466.3,2466.1,4.05498184]
[1750931339765,6.873,2466.3,2466.2,4.05482118]
[1750931339958,0.2024,2466.4,2466.2,4.05472984]
[1750931340269,10.0,2466.6,2466.5,4.05421645]
[1750931340470,10.0,2466.6,2466.4,0.2024]
[1750931340870,10.0,2466.8,2466.4,4.25686908]
[1750931341074,0.2024,2466.9,2466.7,4.05391639]
[1750931341377,8.5916,2467.4,2466.5,0.7547]
[1750931341670,0.7816,2468.1,2467.3,0.7682]
[1750931341897,0.2024,2467.7,2467.3,0.7682]
[1750931342067,0.2024,2467.9,2467.5,4.05260358]
[1750931342238,0.2024,2467.9,2467.3,0.9706]
[1750931342575,10.84768559,2467.4,2466.8,0.7682]
[1750931342755,11.05008559,2467.4,2466.9,0.2024]
[1750931342949,1.30740856,2467.4,2466.9,0.2024]
[1750931343260,10.0,2467.5,2467.0,4.05338988]
[1750931343579,0.2024,2467.4,2466.9,0.2024]
[1750931344070,0.2024,2467.4,2466.9,4.25598865]
[1750931344374,0.2024,2467.4,2466.9,0.2024]
[1750931344584,0.2024,2467.2,2466.8,0.9706]
[1750931345153,0.984,2467.2,2466.8,0.2024]
[1750931345569,0.7816,2467.2,2466.5,6.68548188]
[1750931345771,0.2024,2467.0,2466.6,0.2024]
[1750931346479,0.2024,2466.9,2466.5,2.0654]
[1750931346666,18.81152856,2467.2,2466.5,2.0654]
[1750931346667,18.81152856,2467.2,2466.5,1.863]
[1750931346837,0.2024,2466.8,2466.4,10.92147398]
[1750931347043,0.2024,2466.8,2466.4,6.867]
[1750931347443,0.2024,2466.8,2466.3,0.2024]
[1750931347642,0.2024,2466.8,2466.4,4.05448582]
[1750931347871,0.2024,2466.8,2466.3,0.2024]
[1750931348075,19.89292856,2467.2,2466.1,9.729]
[1750931348076,0.7606,2466.7,2466.1,9.729]
[1750931348277,0.2024,2466.5,2466.1,0.2024]
[1750931348679,0.2024,2466.5,2466.1,0.70562277]
[1750931348975,0.2024,2466.7,2466.3,0.2024]
[1750931349152,0.2024,2466.7,2466.3,4.25704502]
[1750931349352,0.2024,2466.7,2466.3,0.2024]
[1750931349878,0.2024,2466.7,2466.3,4.25704007]
[1750931350380,0.2024,2466.7,2466.4,4.05448914]
[1750931350575,0.2024,2466.7,2466.3,0.2024]
[1750931350774,8.728,2467.4,2466.6,4.81976362]
[1750931350974,0.2024,2467.0,2466.6,5.0220718]
[1750931351183,0.2024,2467.0,2466.7,4.05398517]
[1750931351551,0.2024,2467.0,2466.9,4.05367059]
[1750931351746,0.2024,2467.0,2466.7,4.05399927]
[1750931351956,0.2024,2467.0,2466.6,5.02214785]
[1750931352162,0.9668,2467.0,2466.6,0.2024]
[1750931352365,0.9668,2467.0,2466.6,4.25655143]
[1750931353470,0.9668,2467.0,2466.6,0.2024]
[1750931353670,0.9668,2467.0,2466.6,4.25655618]
[1750931353882,0.2024,2467.0,2466.8,4.05369119]
[1750931354074,0.2024,2467.0,2466.7,4.05395829]
[1750931354257,0.2024,2467.0,2466.8,4.05383492]
[1750931355074,0.7869,2467.3,2466.9,4.05367059]
[1750931355279,0.2024,2467.2,2466.9,4.05367059]
[1750931355480,0.2024,2467.2,2466.8,4.25610678]
[1750931355782,0.2024,2467.2,2467.0,4.05348958]
[1750931356578,0.2024,2467.2,2466.9,4.05359317]
[1750931357284,0.2024,2467.2,2467.0,4.05347776]
[1750931357477,0.2024,2467.2,2466.9,4.05360489]
[1750931357989,1.1,2467.1,2466.9,4.05360489]
[1750931358185,1.1,2467.1,2467.0,4.80980628]
[1750931358597,0.2024,2467.2,2467.1,4.05334198]
[1750931358759,0.95144656,2467.8,2467.0,0.7563]
[1750931358959,0.8076,2467.9,2467.1,0.2024]
[1750931359169,0.8076,2467.9,2467.3,4.2552664]
[1750931359170,0.2024,2467.8,2467.3,4.2552664]
[1750931359370,0.2024,2467.8,2467.3,0.2024]
[1750931359563,0.8076,2467.9,2467.1,4.05330607]
[1750931359790,0.2024,2467.6,2467.3,4.0530132]
[1750931359988,0.2024,2467.6,2467.4,4.05284282]
[1750931360193,0.2024,2467.6,2467.3,4.05295284]
[1750931360911,0.8076,2467.9,2467.4,4.05274535]
[1750931361094,0.2024,2467.7,2467.4,4.05274535]
[1750931361294,0.2024,2467.7,2467.4,4.88355975]
[1750931361495,0.2024,2467.7,2467.4,4.88358763]
[1750931361710,0.2024,2467.7,2467.4,0.8308144]
[1750931362068,0.2024,2467.7,2467.4,4.88365828]
[1750931362300,0.2024,2467.7,2467.4,0.8308144]
[1750931362682,0.2024,2467.7,2467.3,0.2024]
[1750931362895,0.2024,2467.5,2467.1,4.05326062]
[1750931364192,1.0116,2467.5,2467.0,0.9587]
[1750931364490,0.8092,2467.5,2466.9,4.05360368]
[1750931364701,0.2024,2467.4,2466.9,4.25600368]
[1750931365089,0.2024,2467.4,2466.9,5.85568766]
[1750931365471,0.2024,2467.4,2466.9,1.80208398]
[1750931365674,0.2024,2467.4,2466.9,4.25606227]
[1750931366074,0.2024,2467.4,2467.0,4.05341387]
[1750931366515,0.2024,2467.4,2466.9,0.2024]
[1750931366716,0.2024,2467.4,2467.1,4.05318088]
[1750931367013,0.2024,2467.4,2467.2,4.05316812]
[1750931367311,0.2024,2467.4,2467.0,4.05344483]
[1750931367516,0.2024,2467.4,2467.0,4.05343434]
[1750931367713,0.2024,2467.4,2467.0,0.824]
[1750931367888,0.2024,2467.4,2467.1,4.05323756]
[1750931368599,0.2024,2467.4,2467.2,4.05309434]
[1750931368918,0.2024,2467.4,2467.3,4.05301341]
[1750931369124,0.2024,2467.4,2467.1,4.05320445]
[1750931369324,0.2024,2467.4,2467.0,5.8519891]
[1750931369496,0.2024,2467.4,2467.1,4.05325972]
[1750931369697,0.2024,2467.4,2467.2,4.05315793]
[1750931370100,0.2024,2467.4,2467.2,4.05317678]
[1750931370322,0.2024,2467.4,2467.1,4.05326465]
[1750931370515,0.2024,2467.4,2467.0,5.85197496]
[1750931370715,0.2024,2467.4,2467.1,4.05321814]
[1750931370916,0.2024,2467.4,2467.2,4.05314542]
[1750931371117,0.2024,2467.4,2467.1,4.05326032]
[1750931371326,0.2024,2467.4,2467.0,5.02791859]
[1750931372419,1.3024,2467.4,2467.1,4.05333398]
[1750931372610,1.3024,2467.4,2467.0,5.02796689]
[1750931372795,1.3024,2467.4,2467.0,5.02793022]
[1750931372997,1.3024,2467.4,2467.1,4.05333445]
[1750931374329,1.1,2467.4,2467.1,0.92837755]
[1750931374533,1.1,2467.4,2466.8,0.781]
[1750931374534,1.1,2467.4,2467.2,4.05305767]
[1750931374711,0.2024,2467.5,2467.3,4.05301341]
[1750931375732,0.8142,2467.9,2467.4,4.05284915]
[1750931375895,0.2024,2467.8,2467.4,4.05278407]
[1750931376101,0.2024,2467.8,2467.6,4.05250636]
[1750931376298,0.8142,2467.9,2467.7,4.05235644]
[1750931376508,0.2024,2467.9,2467.7,4.05235644]
[1750931376707,0.2024,2467.9,2467.6,4.05243819]
[1750931377130,0.2024,2467.9,2467.7,4.0523113]
[1750931377428,0.2024,2467.9,2467.3,0.8098]
[1750931377429,10.0,2467.7,2467.1,4.05333785]
[1750931377629,0.8026,2467.6,2467.1,4.05333785]
[1750931377847,0.8026,2467.6,2467.0,4.05341332]
[1750931379014,0.8026,2467.6,2467.1,4.0533404]
[1750931379545,0.8026,2467.6,2466.9,4.05357533]
[1750931379847,0.8026,2467.6,2467.0,4.05350486]
[1750931380529,0.8026,2467.6,2466.9,4.05358233]
[1750931380936,2.973908,2467.6,2466.9,4.05358233]
[1750931381137,2.973908,2467.6,2467.0,4.05349678]
[1750931381538,2.973908,2467.6,2467.1,4.05334129]
[1750931381925,0.8026,2467.6,2467.2,4.05311452]
[1750931382743,0.8026,2467.6,2467.1,4.05324287]
[1750931383142,0.8026,2467.6,2466.9,0.7694]
[1750931383341,0.8163,2467.5,2466.7,5.91293517]
[1750931383537,0.8163,2467.5,2466.9,4.05358224]
[1750931383944,1.64487109,2467.5,2466.9,4.05358224]
[1750931384144,1.64487109,2467.5,2466.8,4.05374525]
[1750931384347,1.64487109,2467.5,2466.9,4.05361396]
[1750931384547,0.8163,2467.5,2467.0,4.05338411]
[1750931385357,0.8163,2467.5,2466.7,1.859]
[1750931385552,0.8163,2467.5,2467.0,4.05336079]
[1750931386363,0.8163,2467.5,2467.1,4.05329429]
[1750931386663,1.1,2467.3,2466.9,4.05360336]
[1750931386966,0.8163,2467.5,2466.9,0.59126034]
[1750931387163,0.8163,2467.5,2466.8,4.05372731]
[1750931387364,0.8163,2467.5,2466.9,4.05363822]
[1750931387665,0.2024,2467.3,2466.9,4.05363822]
[1750931388050,0.2024,2467.3,2466.9,4.05367059]
[1750931388362,0.2024,2467.3,2467.0,4.05343534]
[1750931388766,0.2024,2467.3,2466.8,0.2024]
[1750931388966,0.7504,2467.2,2466.4,8.712]
[1750931389271,0.7504,2467.2,2466.5,4.05418587]
[1750931389272,0.2024,2466.9,2466.5,4.05418587]
[1750931389832,0.2024,2466.9,2466.6,4.05415691]
[1750931390028,0.2024,2466.9,2466.4,4.25682782]
[1750931390233,0.7744,2466.8,2466.4,4.05440442]
[1750931390558,0.2024,2466.6,2466.3,4.05457911]
[1750931390750,0.2024,2466.6,2466.3,4.9610724]
[1750931391144,0.2024,2466.6,2466.4,4.05449074]
[1750931392248,0.2024,2466.6,2466.5,4.05432799]
[1750931393362,0.7668,2467.1,2466.8,4.053807]
[1750931393567,0.9692,2467.1,2466.8,4.053807]
[1750931393934,0.9692,2467.1,2466.7,4.25626509]
[1750931394135,0.9692,2467.1,2466.8,4.05380126]
[1750931395251,0.9692,2467.1,2466.7,4.25630654]
[1750931395455,0.9692,2467.1,2466.8,4.05382308]
[1750931396177,0.9692,2467.1,2466.7,4.25634259]
[1750931396339,0.9692,2467.1,2466.8,4.05367364]
[1750931396670,0.9692,2467.1,2466.9,4.05352761]
[1750931396870,10.0,2467.0,2466.2,4.05472827]
[1750931397077,0.7662,2466.9,2466.2,4.05467947]
[1750931397241,0.55,2466.8,2466.2,4.05467947]
[1750931397440,2.92758856,2466.9,2466.3,4.05459657]
[1750931397876,2.92758856,2466.9,2466.2,4.05473714]
[1750931398075,1.1,2466.7,2466.2,4.05473714]
[1750931398573,0.7767,2466.6,2466.1,4.05486565]
[1750931398775,0.7767,2466.6,2466.0,4.05502221]
[1750931399756,0.7767,2466.6,2466.1,4.05497819]
[1750931399958,0.7767,2466.6,2466.0,4.05506502]
[1750931400474,0.7767,2466.6,2466.3,4.05459155]
[1750931401078,0.7767,2466.6,2466.2,4.05473192]
[1750931402478,0.7767,2466.6,2466.1,4.05493407]
[1750931402789,0.7767,2466.6,2466.2,4.05479889]
[1750931403250,0.7767,2466.6,2466.0,4.05509712]
[1750931403450,0.7767,2466.6,2466.0,5.41035103]
[1750931403774,0.7767,2466.6,2466.1,4.05496832]
[1750931404293,0.7767,2466.6,2466.2,4.05479842]
[1750931404599,0.7767,2466.6,2466.1,4.05489881]
[1750931404798,0.7767,2466.6,2466.0,4.05506406]
[1750931404971,0.8325,2466.5,2465.7,1.853]
[1750931405497,0.8325,2466.5,2466.0,0.8133]
[1750931405657,10.0,2466.6,2466.4,4.05449237]
[1750931405862,0.8266,2466.7,2466.2,4.05482118]
[1750931406200,0.8266,2466.7,2466.6,4.05416362]
[1750931406361,0.8266,2466.7,2466.5,4.05421285]
[1750931406581,0.8266,2466.7,2466.0,0.8133]
[1750931406784,0.2024,2466.6,2466.3,4.05458092]
[1750931407020,0.2024,2466.6,2466.2,0.2024]
[1750931407021,0.2024,2466.6,2466.4,4.05449189]
[1750931407235,0.2024,2466.6,2466.5,4.05432799]
[1750931407727,0.8266,2466.7,2466.6,4.05416362]
[1750931408427,0.8266,2466.7,2466.4,4.2568189]
[1750931408595,0.8266,2466.7,2466.1,4.05483094]
[1750931408596,1.9295,2466.7,2466.1,4.05483094]
[1750931408794,0.2024,2466.5,2466.1,4.05483094]
[1750931410422,0.2024,2466.5,2466.0,4.25748345]
[1750931410600,0.2024,2466.5,2466.1,4.05496943]
[1750931411310,0.822,2466.4,2466.1,4.05496943]
[1750931412292,0.822,2466.4,2466.1,4.05498397]
[1750931412829,0.822,2466.4,2466.2,4.05474332]
[1750931412998,0.2024,2466.5,2466.3,4.05458912]
[1750931413512,0.2024,2466.5,2466.4,4.05449237]
[1750931414029,0.2024,2466.5,2466.3,4.05456369]
[1750931414707,0.2024,2466.5,2466.2,4.0547604]
[1750931414908,0.2024,2466.5,2466.1,4.05488664]
[1750931415236,0.2024,2466.5,2466.2,4.05481422]
[1750931415593,0.2024,2466.5,2466.3,4.0545635]
[1750931416028,0.2024,2466.5,2466.2,4.0547389]
[1750931416198,0.2024,2466.5,2466.3,4.05452187]
[1750931416403,0.2024,2466.5,2466.4,4.05449237]
[1750931416598,0.7544,2466.8,2466.5,4.05432799]
[1750931416797,0.2024,2466.6,2466.5,4.05432799]
[1750931417197,0.9568,2466.8,2466.6,4.05411348]
[1750931417393,0.9568,2466.8,2466.5,4.05424045]
[1750931417598,0.9568,2466.8,2466.6,4.05412054]
[1750931417796,0.9568,2466.8,2466.5,4.05425663]
[1750931418003,1.1,2466.6,2466.5,4.05425663]
[1750931418314,0.7705,2466.5,2465.7,0.8066]
[1750931418495,0.7705,2466.5,2464.0,3.44968116]
[1750931418496,0.7705,2465.8,2464.7,0.8066]
[1750931418694,0.7705,2465.8,2465.1,4.05651159]
[1750931418897,0.2024,2465.6,2465.2,4.25883767]
[1750931419125,0.2024,2465.6,2465.2,0.2024]
[1750931419330,0.2024,2465.6,2465.2,1.03396295]
[1750931419523,0.7705,2465.8,2465.6,4.05564608]
[1750931419729,0.9729,2465.8,2465.3,0.2024]
[1750931419932,0.9729,2465.8,2465.5,4.05596937]
[1750931420131,0.9729,2465.8,2465.4,4.05605949]
[1750931420341,0.9729,2465.8,2465.3,4.25862174]
[1750931420658,0.9729,2465.8,2465.3,0.2024]
[1750931420855,2.25559,2465.8,2465.3,0.2024]
[1750931421057,0.2024,2465.5,2465.3,4.05620595]
[1750931421219,0.2024,2465.5,2465.2,4.05637524]
[1750931421620,0.8269,2465.4,2465.2,4.05637524]
[1750931421822,0.8269,2465.4,2465.1,4.25893454]
[1750931422225,0.8269,2465.4,2465.2,4.0564449]
[1750931422632,0.8269,2465.4,2465.1,4.2589363]
[1750931422918,0.7723,2465.8,2465.4,4.05613693]
[1750931423125,0.7723,2465.8,2465.5,4.05596099]
[1750931423126,2.6263,2465.8,2465.5,4.05596099]
[1750931423330,2.6263,2465.8,2465.4,4.05604923]
[1750931423733,2.6263,2465.8,2465.5,4.05596707]
[1750931423933,2.6263,2465.8,2465.7,4.05564342]
[1750931424135,1.854,2465.8,2465.7,4.05564342]
[1750931424352,1.854,2465.8,2465.6,4.05579313]
[1750931424721,0.2024,2465.9,2465.6,0.83140989]
[1750931425028,0.2024,2466.2,2465.9,4.05520297]
[1750931425548,0.2024,2466.2,2465.8,4.0554156]
[1750931425749,0.2024,2466.2,2465.9,4.05521083]
[1750931426444,0.2024,2466.2,2466.0,4.05512538]
[1750931426855,0.2024,2466.2,2465.9,4.05521626]
[1750931427348,0.2024,2466.2,2466.1,4.0549856]
[1750931427562,1.854,2466.3,2466.0,0.2024]
[1750931427859,1.854,2466.3,2466.1,4.05497741]
[1750931428057,1.854,2466.3,2466.0,4.25745373]
[1750931428260,1.854,2466.3,2466.1,4.05491547]
[1750931428661,1.854,2466.3,2466.2,4.05482118]
[1750931428864,1.854,2466.3,2466.1,4.05490797]
[1750931429369,1.854,2466.3,2466.0,0.2024]
[1750931429567,1.854,2466.3,2466.2,4.05482118]
[1750931429762,1.854,2466.3,2466.1,4.05488778]
[1750931430153,16.844,2466.4,2466.0,0.2024]
[1750931430154,10.0,2466.4,2466.0,0.2024]
[1750931430535,10.0,2466.4,2466.3,4.05465677]
[1750931430735,11.848,2466.5,2466.4,4.05449237]
[1750931431068,10.0,2466.5,2466.4,4.05449237]
[1750931431563,10.0,2466.5,2466.3,4.05462935]
[1750931431967,10.0,2466.5,2466.2,5.07090397]
[1750931432166,10.0,2466.5,2466.2,4.25714276]
[1750931432471,9.6633,2466.7,2466.3,4.05456618]
[1750931432966,10.72481211,2466.7,2466.2,0.2024]
[1750931433165,0.2024,2466.5,2466.0,4.25747633]
[1750931433365,0.7964,2466.4,2465.8,4.05545492]
[1750931433567,0.2024,2466.2,2465.7,4.25797755]
[1750931433867,0.801,2466.1,2465.7,4.25804167]
[1750931434767,3.43354,2466.1,2465.5,4.05582076]
[1750931434938,3.43354,2466.1,2465.5,0.2024]
[1750931434939,0.2024,2465.9,2465.5,0.2024]
[1750931435138,7.0434,2465.9,2465.5,4.25836897]
[1750931436644,7.0434,2465.9,2465.6,4.05579625]
[1750931436859,7.0434,2465.9,2465.7,4.05553474]
[1750931437174,7.0434,2465.9,2465.5,0.2024]
[1750931437340,7.0434,2465.9,2465.6,4.05578258]
[1750931437835,7.0434,2465.9,2465.7,4.05563187]
[1750931438039,7.0434,2465.9,2465.6,4.05571542]
[1750931438875,7.0434,2465.9,2465.5,4.25830031]
[1750931439173,7.0434,2465.9,2465.5,0.2024]
[1750931439767,0.815,2465.8,2465.5,0.2024]
[1750931441783,0.815,2465.8,2465.5,4.25836411]
[1750931442008,0.815,2465.8,2465.6,4.05571823]
[1750931442287,0.815,2465.8,2465.5,5.08976121]
[1750931442984,0.815,2465.8,2465.6,4.0557336]
[1750931443164,0.815,2465.8,2465.5,5.08977158]
[1750931443365,0.815,2465.8,2465.5,0.2024]
[1750931443681,0.815,2465.8,2465.5,4.25835186]
[1750931444662,0.8109,2465.5,2465.4,0.2024]
[1750931444866,0.8109,2465.5,2464.4,0.7535]
[1750931444867,10.8109,2465.4,2464.4,0.7535]
[1750931445069,12.3823537,2465.4,2464.7,4.05726854]
[1750931445462,6.838,2465.3,2464.5,4.05761817]
[1750931445668,10.0,2465.2,2464.8,4.05705103]
[1750931445868,10.0,2465.2,2464.2,1.848]
[1750931445869,0.8109,2465.4,2464.2,5.90609084]
[1750931446181,10.84768559,2465.1,2464.4,4.05778282]
[1750931447282,10.84768559,2465.1,2464.2,0.7535]
[1750931447684,10.84768559,2465.1,2464.5,4.05760818]
[1750931448060,10.84768559,2465.1,2464.4,4.05770008]
[1750931448686,0.768,2465.0,2464.3,4.0578574]
[1750931448878,0.768,2465.0,2464.2,4.81154646]
[1750931448879,1.85276856,2465.0,2464.2,4.81154646]
[1750931449400,1.85276856,2465.0,2464.4,4.05775314]
[1750931449802,1.85276856,2465.0,2464.3,4.05794749]
[1750931449803,0.768,2465.0,2464.3,4.05794749]
[1750931450109,17.6447,2465.2,2464.4,0.7981]
[1750931450510,17.6447,2465.2,2464.5,4.05755956]
[1750931450660,17.6447,2465.2,2464.6,4.05730941]
[1750931450862,17.6447,2465.2,2464.6,4.05741572]
[1750931451062,17.6447,2465.2,2464.5,4.05758706]
[1750931451063,19.59407,2465.2,2464.5,4.05758706]
[1750931451562,19.59407,2465.2,2464.4,4.85578504]
[1750931451764,19.59407,2465.2,2464.5,4.05753536]
[1750931452166,19.59407,2465.2,2464.4,4.85583682]
[1750931452484,19.59407,2465.2,2464.5,4.05750032]
[1750931452803,19.59407,2465.2,2464.4,4.85583682]
[1750931452804,2.144307,2465.1,2464.4,4.05768616]
[1750931452958,2.144307,2465.1,2464.3,5.90693034]
[1750931452959,2.144307,2465.1,2464.3,5.90685044]
[1750931453161,2.144307,2465.1,2464.4,4.05776241]
[1750931453162,0.7797,2465.0,2464.4,4.05776241]
[1750931453964,0.7797,2465.0,2464.3,4.05787265]
[1750931454165,2.7559007,2465.0,2464.3,4.05787265]
[1750931454787,0.2024,2464.9,2464.4,0.2024]
[1750931454965,0.2024,2464.9,2464.4,4.26017381]
[1750931455366,0.2024,2464.9,2464.4,4.26011909]
[1750931455677,0.2024,2464.9,2464.4,0.2024]
[1750931456693,0.49823007,2464.9,2464.4,0.2024]
[1750931456894,0.2024,2464.7,2464.3,0.2024]
[1750931457066,0.8304,2464.6,2464.3,0.2024]
[1750931457467,0.8304,2464.6,2463.4,0.32545942]
[1750931457468,0.8304,2464.6,2463.8,4.0586897]
[1750931457666,20.84768559,2464.7,2464.0,0.2024]
[1750931457667,1.0328,2464.4,2464.0,0.2024]
[1750931457974,1.0328,2464.4,2464.0,4.26082605]
[1750931457975,7.8698,2464.4,2464.0,4.26082605]
[1750931458170,7.8698,2464.4,2464.0,0.2024]
[1750931459403,0.8088,2464.2,2463.4,5.21131596]
[1750931459607,0.2024,2464.1,2463.6,0.2024]
[1750931460107,0.8088,2464.0,2463.6,0.2024]
[1750931460308,6.837,2463.9,2463.6,0.2024]
[1750931461190,6.837,2463.9,2463.4,0.32545942]
[1750931461392,7.0394,2463.9,2463.4,4.58720611]
[1750931461693,7.0394,2463.9,2463.4,0.52785942]
[1750931462093,7.0394,2463.9,2463.4,4.58718118]
[1750931462317,7.0394,2463.9,2463.5,4.05926027]
[1750931462486,7.0394,2463.9,2463.4,0.52785942]
[1750931462824,7.0394,2463.9,2463.4,4.5872035]
[1750931463197,7.0394,2463.9,2463.4,0.52785942]
[1750931463518,7.82422,2463.9,2463.4,0.52785942]
[1750931463728,0.2024,2463.9,2463.7,4.05886278]
[1750931463930,0.2024,2463.9,2463.5,4.05926527]
[1750931464103,0.2024,2463.9,2463.6,4.05898614]
[1750931464290,0.2024,2463.9,2463.6,4.05901391]
[1750931464690,0.8055,2463.6,2463.4,0.32545942]
[1750931464893,19.41381856,2463.5,2463.4,0.32545942]
[1750931465311,18.86381856,2463.5,2463.4,0.32545942]
[1750931465514,10.8055,2463.5,2463.4,0.32545942]
[1750931465702,19.4865,2463.5,2463.4,0.32545942]
[1750931465902,10.8055,2463.5,2463.4,0.32545942]
[1750931466114,0.8055,2463.5,2463.4,4.38488947]
[1750931466643,0.8055,2463.5,2463.4,0.32545942]
[1750931466929,2.56975,2463.5,2463.4,0.32545942]
[1750931468007,4.41475,2463.5,2463.4,0.32545942]
[1750931468197,4.96475,2463.5,2463.4,0.32545942]
[1750931472295,0.7869,2463.4,2462.7,0.005]
[1750931472614,12.61193559,2463.5,2462.7,0.005]